[Event "36th German Seniors-ch-65 2024"]
[Site "Bad Wildungen"]
[Date "2024.08.27"]
[Round "5.9"]
[White "Westermann, Johannes"]
[Black "Juhnke, Juergen"]
[Result "0-1"]
[ECO "E92"]
[WhiteElo "2055"]
[BlackElo "2259"]
[Annotator "TA"]
[PlyCount "51"]
[EventDate "2024.08.22"]
[EventType "swiss"]
[EventCountry "GER"]
[SourceTitle "playchess.com"]
[Source "ChessBase"]
[SourceQuality "1"]
[TimeControl "40/5400+30:1800+30"]

{[%evp 14,51,49,23,28,12,23,15,4,-80,7,-9,2,-39,44,47,45,-22,-13,-41,-61,-462,-490,-481,-467,-468,-346,-1103,-1033,-1216,-1216,-1209,-1202,-1329,-1057,-1017,-929,-29991,-29992,-29997]} 1. d4 {[%emt 0:00:06]} Nf6 {[%emt 0:00:00]} 2. Nf3 {[%emt 0:00:12]} g6 {[%emt 0:00:00]} 3. c4 {[%emt 0:00:15]} Bg7 {[%emt 0:00:01]} 4. Nc3 {[%emt 0:00:07]} O-O {[%emt 0:00:08]} 5. e4 {[%emt 0:00:05]} d6 {[%emt 0:00:05]} 6. Be2 {[%emt 0:00:06]} e5 {[%emt 0:00:09]} 7. d5 {[%emt 0:00:07]} Na6 {[%emt 0:00:08]} 8. Bg5 {[%emt 0:00:38]} h6 {[%emt 0:00:11]} 9. Be3 {[%emt 0:01:53]} Ng4 {[%emt 0:00:44]} 10. Bd2 {[%emt 0:00:12]} f5 {[%emt 0:00:47] The position is equal.} 11. h3 {[%emt 0:00:06] [#]} (11. O-O $11 {remains equal.}) 11... Nf6 {[%emt 0:00:07]} ({Better is} 11... Nxf2 $1 $17 12. Kxf2 fxe4) 12. exf5 $11 {[%emt 0:00:21]} gxf5 {[%emt 0:00:23]} 13. Qc1 {[%emt 0:00:15]} Kh7 {[%emt 0:05:53] [#]} ({Black should try} 13... f4 $15) 14. g4 $1 $14 {[%emt 0:00:34]} Nc5 {[%emt 0:06:43]} 15. Qc2 {[%emt 0:13:31]} (15. Be3 $14) 15... e4 $1 $11 {[%emt 0:05:17]} 16. Nh4 {[%emt 0:29:30]} Nxd5 $1 {[%emt 0:00:47][%cal Bf6d5,Bd5b4,Bb4d3][%mdl 32]} 17. Nxf5 $2 {[%emt 0:00:10][%mdl 8192] Now White is beyond hope.} (17. Nxd5 $15 Qxh4 18. O-O-O) 17... Nb4 $19 {[%emt 0:00:41]} 18. Qb1 {[%emt 0:01:15]} Bxf5 {[%emt 0:01:47]} 19. gxf5 {[%emt 0:00:15]} Nbd3+ {[%emt 0:01:49] A dynamic duo of knights.} (19... Rxf5 $2 {perishes.} 20. Nxe4 Kg8 (20... Qh4 $2 21. Ng3 $18) 21. Nxc5 $18 (21. Bxb4 Qe7 $18) (21. Bxb4 Qe7 $18)) 20. Kf1 $2 {[%emt 0:00:42]} (20. Kd1) 20... Qh4 {[%emt 0:01:54][%csl Gd3][%cal Rh4f2]} 21. Rh2 {[%emt 0:03:37]} Rxf5 {[%emt 0:07:58]} 22. Be3 {[%emt 0:03:54]} Bxc3 {[%emt 0:03:03]} 23. bxc3 {[%emt 0:08:43]} Raf8 {[%emt 0:00:31][%cal Rf5f2] ( -> ...Rxf2+)} 24. Bxd3 {[%emt 0:01:37]} Nxd3 {[%emt 0:00:20]} 25. Qc2 {[%emt 0:00:15]} Qg3 {[%emt 0:00:38]} 26. Qd1 {[%emt 0:35:04] Weighted Error Value: White=1.05/Black=0.49.  Loses game:     	White=1     	---        Mistake:       	White=3     	Black=2      Inaccurate:     	White=2     	---        OK:         	White=4     	Black=2      Best:        	---       	Black=2      Strong:       	---       	Black=2} 0-1

[Event "36th German Seniors-ch-65 2024"]
[Site "Bad Wildungen"]
[Date "2024.08.27"]
[Round "5.10"]
[White "Nehmert, Ulrich"]
[Black "Gollasch, Theo-Heinz"]
[Result "1/2-1/2"]
[ECO "D10"]
[WhiteElo "2255"]
[BlackElo "2006"]
[Annotator "TA"]
[PlyCount "40"]
[EventDate "2024.08.22"]
[EventType "swiss"]
[EventCountry "GER"]
[SourceTitle "playchess.com"]
[Source "ChessBase"]
[SourceQuality "1"]
[TimeControl "40/5400+30:1800+30"]

{[%evp 15,40,34,40,27,27,20,54,51,58,66,83,72,115,114,119,52,87,31,59,25,44,6,32,28,23,17,27]} 1. c4 {[%emt 0:00:02]} c6 {[%emt 0:01:23]} 2. d4 {[%emt 0:01:20]} d5 {[%emt 0:00:06]} 3. cxd5 {[%emt 0:00:12]} cxd5 {[%emt 0:00:08]} 4. Bf4 {[%emt 0:00:29]} Nc6 {[%emt 0:02:27]} 5. Nc3 {[%emt 0:00:19]} e6 {[%emt 0:01:41]} 6. e3 {[%emt 0:00:57]} a6 {[%emt 0:01:09]} 7. Rc1 {[%emt 0:02:04]} Nf6 {[%emt 0:00:14]} 8. Bd3 {[%emt 0:01:04]} Bd6 {[%emt 0:00:46]} 9. Bxd6 {[%emt 0:00:22]} Qxd6 {[%emt 0:00:07]} 10. f4 {[%emt 0:00:07]} Nd7 {[%emt 0:06:48]} 11. Nf3 {[%emt 0:01:31] White is slightly better.} f5 {[%emt 0:04:01]} 12. g4 {[%emt 0:02:54]} Nf6 {[%emt 0:04:02]} 13. Ne5 {[%emt 0:03:58] [#] Strongly threatening g5.} fxg4 {[%emt 0:04:59]} 14. h3 {[%emt 0:00:57] White has more active pieces. The black rooks are passive.} g3 {[%emt 0:07:35]} 15. Rg1 {[%emt 0:02:14]} (15. Qf3 $16) 15... O-O {[%emt 0:04:49]} 16. Rxg3 {[%emt 0:00:43]} (16. Qf3 $16) 16... Bd7 $14 {[%emt 0:00:24]} 17. a3 {[%emt 0:05:15]} Be8 {[%emt 0:00:59]} 18. Qc2 {[%emt 0:04:31]} Ne7 {[%emt 0:04:40]} 19. Qg2 {[%emt 0:05:45]} g6 {[%emt 0:01:00]} 20. Rg5 {[%emt 0:07:35]} Kh8 {[%emt 0:53:12] Weighted Error Value: White=0.23 (precise) /Black=0.17 (very precise) .  Mistake:       	White=2     	---        Inaccurate:     	White=2     	Black=4      OK:         	White=4     	Black=3} 1/2-1/2

[Event "36th German Seniors-ch-65 2024"]
[Site "Bad Wildungen"]
[Date "2024.08.27"]
[Round "5.11"]
[White "Boeven, Manfred"]
[Black "Rosen, Bernd"]
[Result "1/2-1/2"]
[ECO "D03"]
[WhiteElo "1998"]
[BlackElo "2245"]
[Annotator "TA"]
[PlyCount "45"]
[EventDate "2024.08.22"]
[EventType "swiss"]
[EventCountry "GER"]
[SourceTitle "playchess.com"]
[Source "ChessBase"]
[SourceQuality "1"]
[TimeControl "40/5400+30:1800+30"]

{[%evp 9,45,-19,-18,-7,56,54,56,39,87,95,93,100,101,93,87,55,154,166,165,169,174,156,176,179,237,269,269,243,242,181,391,383,343,177,164,168,166,162]} 1. d4 {[%emt 0:00:08]} e6 {[%emt 0:00:11]} 2. Nc3 {[%emt 0:00:22]} d5 {[%emt 0:00:12]} 3. Nf3 {[%emt 0:00:28]} Nf6 {[%emt 0:00:10]} 4. Bg5 {[%emt 0:00:38]} Bb4 {[%emt 0:00:15]} 5. e3 {[%emt 0:01:44]} c5 {[%emt 0:00:18]} 6. dxc5 {[%emt 0:05:49]} h6 {[%emt 0:04:03]} (6... Nbd7 $11) 7. Bxf6 $1 $14 {[%emt 0:01:01]} Qxf6 {[%emt 0:00:14]} 8. Qd4 {[%emt 0:02:14] White is slightly better.} Nc6 {[%emt 0:00:49]} (8... Bxc3+ $14 {feels stronger.} 9. bxc3 Nd7) 9. Bb5 $16 {[%emt 0:01:11]} Bd7 {[%emt 0:03:33] [#]} 10. Bxc6 {[%emt 0:03:01]} Bxc3+ {[%emt 0:00:07]} 11. bxc3 {[%emt 0:02:10]} Bxc6 {[%emt 0:00:07]} 12. Ne5 {[%emt 0:03:34]} O-O {[%emt 0:05:22]} (12... Rc8 $14) 13. Nxc6 {[%emt 0:05:50]} bxc6 {[%emt 0:00:05][%cal Bb7c6,Bc6b5][%mdl 32]} 14. Qxf6 {[%emt 0:00:09]} gxf6 {[%emt 0:00:02][%mdl 4096] Endgame. KRR-KRR} 15. Rb1 {[%emt 0:05:05]} Rab8 {[%emt 0:00:33]} 16. Kd2 {[%emt 0:00:23]} Rb5 {[%emt 0:00:33]} (16... Rfd8 $142 17. a4 Kf8) 17. Rxb5 $18 {[%emt 0:00:58]} cxb5 {[%emt 0:00:04] KR-KR} 18. Rb1 {[%emt 0:00:40]} a6 {[%emt 0:00:13]} 19. Kd3 {[%emt 0:01:43] Black must now prevent Kd4.} e5 $2 {[%emt 0:01:03] [#]} (19... Rc8 {was called for.}) 20. a4 $1 {[%emt 0:05:44][%mdl 512]} bxa4 {[%emt 0:00:35]} (20... Rd8 21. axb5) 21. Ra1 {[%emt 0:00:13]} (21. c4 $142 Rc8 (21... dxc4+ $2 22. Kxc4 Rc8 23. Rb6 $18) 22. cxd5 Rxc5 23. c4) 21... Rc8 {[%emt 0:00:38]} 22. Rxa4 {[%emt 0:00:10]} Rxc5 {[%emt 0:00:15]} 23. Rxa6 {[%emt 0:00:09] Weighted Error Value: White=0.17 (very precise) /Black=0.46.  Mistake:       	White=1     	Black=5      Inaccurate:     	White=1     	---        OK:         	White=6     	Black=5      Best:        	White=5     	Black=2      Strong:       	White=1     	---} 1/2-1/2

[Event "36th German Seniors-ch-65 2024"]
[Site "Bad Wildungen"]
[Date "2024.08.27"]
[Round "5.12"]
[White "Heinig, Wolfram"]
[Black "Keller, Harald"]
[Result "1-0"]
[ECO "A39"]
[WhiteElo "2215"]
[BlackElo "2022"]
[Annotator "TA"]
[PlyCount "55"]
[EventDate "2024.08.22"]
[EventType "swiss"]
[EventCountry "GER"]
[SourceTitle "playchess.com"]
[Source "ChessBase"]
[SourceQuality "1"]
[TimeControl "40/5400+30:1800+30"]

{[%evp 21,55,56,45,45,63,51,56,54,68,44,72,73,100,115,109,106,101,112,109,109,120,125,125,122,124,126,145,143,148,125,189,156,207,174,164,154]} 1. Nf3 {[%emt 0:00:30]} Nf6 {[%emt 0:00:14]} 2. c4 {[%emt 0:00:10]} c5 {[%emt 0:00:26]} 3. Nc3 {[%emt 0:00:34]} Nc6 {[%emt 0:00:17]} 4. d4 {[%emt 0:01:06]} cxd4 {[%emt 0:00:39]} 5. Nxd4 {[%emt 0:00:04]} g6 {[%emt 0:00:28]} 6. g3 {[%emt 0:03:19]} Bg7 {[%emt 0:00:37]} 7. Bg2 {[%emt 0:00:05]} O-O {[%emt 0:00:55]} 8. O-O {[%emt 0:00:25]} Nxd4 {[%emt 0:00:23]} 9. Qxd4 {[%emt 0:00:04]} d6 {[%emt 0:00:11]} 10. Qd3 {[%emt 0:00:25]} Qa5 {[%emt 0:02:37]} 11. Bd2 {[%emt 0:13:23]} Qh5 {[%emt 0:01:13]} 12. b3 {[%emt 0:15:21]} Ng4 {[%emt 0:12:10][%csl Gg4][%cal Rh5h2] [#]} 13. h4 {[%emt 0:04:27][%cal Oc3d5]} Ne5 {[%emt 0:12:53]} 14. Qe3 {[%emt 0:01:45] White is slightly better.} Nc6 {[%emt 0:02:15]} 15. Rac1 {[%emt 0:05:03]} Be6 {[%emt 0:08:59]} 16. Nd5 {[%emt 0:02:22]} Bxd5 {[%emt 0:07:17]} 17. cxd5 {[%emt 0:06:21]} Nd4 {[%emt 0:02:24]} 18. Rfe1 {[%emt 0:00:21][%cal Bf1e1,Be1d1,Bd1d2][%mdl 32]} (18. Qxe7 $2 Nxe2+ (18... Qxe2 19. Bg5 $15) 19. Kh2 Nxc1 20. Bxc1 Be5 $19) 18... Qf5 {[%emt 0:06:07]} 19. Be4 {[%emt 0:13:09] Prevents Nc2. This pair of bishops is nice.} (19. Qxe7 Rae8 20. Qxd6 (20. e4 $2 Ne2+ 21. Rxe2 Rxe7 $19) 20... Nxe2+ (20... Rxe2 21. Qf4 $14) 21. Rxe2 Rxe2 $15) 19... Qd7 {[%emt 0:06:47]} 20. Bc3 {[%emt 0:00:53]} e5 {[%emt 0:06:17]} 21. dxe6 {[%emt 0:00:48]} Nxe6 {[%emt 0:00:10]} 22. Bxg7 {[%emt 0:01:18]} Kxg7 {[%emt 0:00:28]} 23. Red1 {[%emt 0:00:37]} Kg8 {[%emt 0:12:46]} 24. Kg2 {[%emt 0:04:11] White is much more active.} Rfe8 {[%emt 0:05:07]} 25. Bf3 {[%emt 0:01:33]} f6 {[%emt 0:03:24]} (25... h5 $16 26. Rd2 Ng7) 26. Rd2 {[%emt 0:07:24] White is clearly better.} Ng5 {[%emt 0:01:31]} (26... Kg7 $16 27. Qe4 Re7) 27. Bd5+ {[%emt 0:02:10]} Kg7 {[%emt 0:00:01]} 28. Qf4 {[%emt 0:01:45] Black did not feel at home in the position after the opening.   Weighted Error Value: White=0.09 (flawless) /Black=0.14 (very precise) .  Mistake:       	---       	Black=2      Inaccurate:     	---       	Black=2      OK:         	White=9     	Black=6      Best:        	White=1     	---} 1-0

[Event "36th German Seniors-ch-65 2024"]
[Site "Bad Wildungen"]
[Date "2024.08.27"]
[Round "5.13"]
[White "Vatter, Hans-Joachim"]
[Black "Zunker, Reinhard"]
[Result "1-0"]
[ECO "C00"]
[WhiteElo "2212"]
[BlackElo "2004"]
[Annotator "TA"]
[PlyCount "35"]
[EventDate "2024.08.22"]
[EventType "swiss"]
[EventCountry "GER"]
[SourceTitle "playchess.com"]
[Source "ChessBase"]
[SourceQuality "1"]
[TimeControl "40/5400+30:1800+30"]

{[%evp 21,35,-21,-16,-23,-9,-14,44,63,54,-36,54,29,335,356,346,347]} 1. e4 {[%emt 0:00:07]} c5 {[%emt 0:01:01]} 2. Nf3 {[%emt 0:00:16]} e6 {[%emt 0:00:20]} 3. c3 {[%emt 0:02:30]} Nf6 {[%emt 0:00:36]} 4. d3 {[%emt 0:02:26]} Be7 {[%emt 0:01:59]} 5. g3 {[%emt 0:01:01]} Nc6 {[%emt 0:01:23]} 6. Nbd2 {[%emt 0:02:39]} Qc7 {[%emt 0:06:22]} 7. Bg2 {[%emt 0:01:32]} d5 {[%emt 0:01:20]} 8. O-O {[%emt 0:01:07]} O-O {[%emt 0:01:16]} 9. Re1 {[%emt 0:01:09]} b6 {[%emt 0:05:51]} 10. Qe2 {[%emt 0:18:34]} Ba6 {[%emt 0:07:34]} 11. e5 {[%emt 0:00:37]} Nd7 {[%emt 0:00:33]} 12. h4 {[%emt 0:03:05]} Rfe8 {[%emt 0:02:02]} 13. Nf1 {[%emt 0:01:06]} f6 {[%emt 0:01:59]} (13... d4 $11) 14. exf6 $14 {[%emt 0:33:27] White is slightly better.} Bxf6 {[%emt 0:00:31]} 15. Bg5 {[%emt 0:00:42]} (15. Bf4 $14 e5 16. Ng5) 15... Nde5 {[%emt 0:00:48]} ({Better is} 15... h6 $15) 16. Nxe5 {[%emt 0:00:57]} Nxe5 $4 {[%emt 0:00:44][%mdl 8192] [#]} (16... Bxe5 $11 17. f4 Bd6) 17. Bf4 $18 {[%emt 0:00:16]} Bxd3 {[%emt 0:03:03]} 18. Bxe5 {[%emt 0:00:30] Weighted Error Value: White=0.26 (precise) /Black=0.94.  Loses game:     	---       	Black=1      Mistake:       	White=1     	Black=2      OK:         	White=1     	Black=1      Best:        	White=2     	---} 1-0

[Event "36th German Seniors-ch-65 2024"]
[Site "Bad Wildungen"]
[Date "2024.08.27"]
[Round "5.14"]
[White "Larem, Ewald"]
[Black "Okrajek, Alexander"]
[Result "1-0"]
[ECO "A17"]
[WhiteElo "1998"]
[BlackElo "2172"]
[Annotator "TA"]
[PlyCount "100"]
[EventDate "2024.08.22"]
[EventType "swiss"]
[EventCountry "GER"]
[SourceTitle "playchess.com"]
[Source "ChessBase"]
[SourceQuality "1"]
[TimeControl "40/5400+30:1800+30"]

{[%evp 24,100,69,23,33,18,35,43,38,39,60,51,77,67,89,51,68,20,46,33,55,59,64,69,58,63,69,61,56,59,52,49,143,57,62,54,54,33,54,17,24,24,30,0,0,0,0,0,0,0,0,0,0,-7,-8,-12,-5,-6,-3,-3,0,0,0,0,0,-29,-18,-18,-14,-8,-17,-25,-25,-29,-29,-29,-37,-56,-55]} 1. d4 {[%emt 0:00:04]} Nf6 {[%emt 0:00:20]} 2. c4 {[%emt 0:00:14]} e6 {[%emt 0:01:43]} 3. Nc3 {[%emt 0:01:34]} Bb4 {[%emt 0:00:24]} 4. Qc2 {[%emt 0:01:26]} c5 {[%emt 0:00:53]} 5. e3 {[%emt 0:00:28]} O-O {[%emt 0:03:27]} 6. a3 {[%emt 0:01:16]} Bxc3+ {[%emt 0:00:59]} 7. Qxc3 {[%emt 0:00:19]} b6 {[%emt 0:05:04]} 8. Nf3 {[%emt 0:04:28]} Bb7 {[%emt 0:01:18]} 9. Be2 {[%emt 0:00:18]} d6 {[%emt 0:03:10]} 10. O-O {[%emt 0:00:42]} Nbd7 {[%emt 0:01:44]} 11. Rd1 {[%emt 0:01:49]} Qe7 {[%emt 0:02:19]} 12. b4 {[%emt 0:02:05]} Rac8 {[%emt 0:04:33]} 13. Bb2 {[%emt 0:00:52]} (13. dxc5 $14 {deserves consideration.} dxc5 14. Bb2) 13... Ne4 $11 {[%emt 0:02:34]} 14. Qb3 {[%emt 0:11:12]} Ba8 {[%emt 0:05:16]} 15. Rac1 {[%emt 0:01:50]} f5 {[%emt 0:01:53] White is slightly better.} 16. Nd2 {[%emt 0:05:53]} Ndf6 {[%emt 0:17:04]} 17. f3 {[%emt 0:09:01]} Nxd2 {[%emt 0:01:08]} 18. Rxd2 {[%emt 0:00:33]} cxd4 {[%emt 0:06:17]} 19. Rxd4 {[%emt 0:04:39]} d5 {[%emt 0:02:24]} 20. Rcd1 {[%emt 0:05:21]} (20. Qd1 $14) 20... h6 {[%emt 0:02:09]} 21. R4d2 {[%emt 0:03:39]} Kh7 {[%emt 0:01:06]} 22. Be5 {[%emt 0:02:18]} Rfd8 {[%emt 0:03:05]} 23. cxd5 {[%emt 0:07:21]} Rxd5 {[%emt 0:01:44]} 24. Qb2 {[%emt 0:03:21]} Rcd8 {[%emt 0:03:57]} 25. Bc4 {[%emt 0:03:48] This pair of bishops is nice.} (25. Rxd5 {simplifies} Rxd5 26. Rxd5 Bxd5 27. Qc3) 25... Rxd2 {[%emt 0:02:54]} 26. Rxd2 {[%emt 0:00:05]} Rxd2 {[%emt 0:03:23]} 27. Qxd2 {[%emt 0:00:02]} Qd7 {[%emt 0:06:56]} (27... Bd5 $14 28. Bb5 Qd8) 28. Qd4 {[%emt 0:04:46] White is more active.} (28. Qxd7 $16 Nxd7 29. Bd6) 28... Qxd4 $14 {[%emt 0:00:55]} 29. exd4 {[%emt 0:04:16][%cal Oe5f6][%mdl 4096] [#] Endgame. And now Bxf6! would win. KBB-KBN} Bd5 {[%emt 0:05:09]} 30. Bb5 {[%emt 0:00:50] Strongly threatening Bb8.} Bb7 {[%emt 0:00:19]} 31. Bb8 {[%emt 0:07:07]} a6 {[%emt 0:02:38]} 32. Bc4 {[%emt 0:01:08]} Nd5 {[%emt 0:00:23]} 33. Kf2 {[%emt 0:01:03]} b5 {[%emt 0:00:55]} 34. Ba2 {[%emt 0:02:56]} g5 {[%emt 0:01:16]} 35. Be5 {[%emt 0:01:05]} h5 {[%emt 0:00:47]} 36. Bb3 {[%emt 0:01:13]} Bc6 {[%emt 0:00:21]} 37. Ke2 {[%emt 0:01:50]} Kg6 {[%emt 0:00:44]} 38. Bc2 {[%emt 0:00:29]} Nb6 {[%emt 0:01:33]} 39. Bd3 {[%emt 0:03:10]} Bd5 {[%emt 0:00:49]} 40. Bc7 {[%emt 0:00:11]} Na4 {[%emt 0:03:51]} 41. Kd2 {[%emt 0:31:28]} Bb3 {[%emt 0:32:22]} 42. Bd8 {[%emt 0:03:37]} g4 {[%emt 0:00:57]} 43. fxg4 {[%emt 0:00:41]} hxg4 {[%emt 0:00:09]} 44. g3 {[%emt 0:00:20]} Kf7 {[%emt 0:00:54]} 45. Bf1 {[%emt 0:00:00]} Bd5 {[%emt 0:00:00]} 46. Kc2 {[%emt 0:00:00]} Ke8 {[%emt 0:00:00]} 47. Bc7 {[%emt 0:00:00]} Kd7 {[%emt 0:00:00]} 48. Ba5 {[%emt 0:00:00]} Kc6 {[%emt 0:00:00]} 49. Bd8 {[%emt 0:00:00]} Be4+ {[%emt 0:00:00]} 50. Kb3 {[%emt 0:00:00]} Kd5 {[%emt 0:00:00][%mdl 32768] Weighted Error Value: White=0.13 (very precise) /Black=0.09 (flawless) .  Mistake:       	White=2     	Black=1      Inaccurate:     	White=4     	Black=2      OK:         	White=12    	Black=14     Best:        	---       	Black=2     . Sensor Board Error (Ke4/e5)?} 1-0

[Event "36th German Seniors-ch-65 2024"]
[Site "Bad Wildungen"]
[Date "2024.08.27"]
[Round "5.15"]
[White "Babrikowski, Peter"]
[Black "Ellenberg, Ekkehard"]
[Result "0-1"]
[ECO "B22"]
[WhiteElo "2153"]
[BlackElo "1998"]
[Annotator "TA"]
[PlyCount "90"]
[EventDate "2024.08.22"]
[EventType "swiss"]
[EventCountry "GER"]
[SourceTitle "playchess.com"]
[Source "ChessBase"]
[SourceQuality "1"]
[TimeControl "40/5400+30:1800+30"]

{[%evp 14,90,-31,-26,-20,-56,-29,-95,-83,-79,-93,-93,-88,-95,-101,-108,-94,-102,-93,-99,-100,-125,-125,-131,-112,-114,-114,-124,-115,-135,-127,-130,-122,-154,-125,-179,-123,-193,-179,-189,-184,-177,-181,-203,-205,-243,-241,-277,-229,-226,-212,-266,-259,-384,-364,-29993,-449,-454,-435,-1347,-452,-454,-448,-29985,-29986,-29992,-29993,-29995,-543,-504,-406,-1280,-1300,-1233,-1220,-5065,-4682,-1785,-1479]} 1. e4 {[%emt 0:00:07][%cal Be2e4,Be4e5][%mdl 32]} c5 {[%emt 0:00:20]} 2. c3 {[%emt 0:01:51]} Nf6 {[%emt 0:00:39]} 3. e5 {[%emt 0:00:25]} Nd5 {[%emt 0:00:05]} 4. d4 {[%emt 0:00:46]} cxd4 {[%emt 0:00:09]} 5. Qxd4 {[%emt 0:03:09]} e6 {[%emt 0:01:20]} 6. Nf3 {[%emt 0:00:56]} Nc6 {[%emt 0:01:49]} 7. Qe4 {[%emt 0:00:17]} f5 {[%emt 0:06:56]} 8. Qe2 {[%emt 0:00:48]} Qc7 {[%emt 0:04:19][%cal Ob7b5]} 9. c4 {[%emt 0:01:40]} Bb4+ {[%emt 0:02:57]} 10. Nbd2 {[%emt 0:03:28]} (10. Kd1 $11 Nde7 11. a3) 10... Nf4 $17 {[%emt 0:00:50] Black is much more active. Black is better.} 11. Qe3 {[%emt 0:02:26]} Ng6 {[%emt 0:01:22][%cal Ob7b6]} 12. a3 {[%emt 0:00:44]} Be7 {[%emt 0:00:39][%cal Oe8g8]} 13. b4 {[%emt 0:01:22]} Ncxe5 {[%emt 0:00:39]} 14. Nxe5 {[%emt 0:03:29]} Qxe5 {[%emt 0:00:35]} 15. Qxe5 {[%emt 0:00:12]} Nxe5 {[%emt 0:00:07]} 16. Bb2 {[%emt 0:00:06] [#]} Bf6 {[%emt 0:00:28][%cal Oe5f3]} 17. f4 {[%emt 0:00:28] [#]} Nf3+ {[%emt 0:00:58][%mdl 512]} 18. Nxf3 {[%emt 0:00:27] 0-0-0 is the strong threat.} Bxb2 {[%emt 0:00:05]} 19. Ra2 {[%emt 0:00:11]} Bc3+ {[%emt 0:00:25]} 20. Kf2 {[%emt 0:00:03]} Ke7 {[%emt 0:10:52]} 21. g3 {[%emt 0:00:28]} b6 {[%emt 0:00:46]} 22. Bg2 {[%emt 0:00:37]} Bb7 {[%emt 0:00:30]} 23. Rd1 {[%emt 0:00:54]} Rhd8 {[%emt 0:03:24]} 24. Re2 {[%emt 0:03:07]} (24. Rc2 $17 {was necessary.} Bf6 25. Ne1) 24... g6 {[%emt 0:03:22]} (24... a5 $19 25. Nd4 Bxg2 26. Kxg2 axb4 27. axb4 Bxd4 (27... Bxb4 28. Nxf5+ Kf6 29. Nd6 $15) 28. Rxd4 Ra4) 25. Ne5 {[%emt 0:03:45]} (25. Rd3 $17 Bf6 26. Nh4) 25... Bxg2 $19 {[%emt 0:00:56]} 26. Kxg2 {[%emt 0:00:04]} Bxe5 {[%emt 0:04:15]} 27. Rxe5 {[%emt 0:00:23][%mdl 4096] Endgame. KRR-KRR} Rdc8 {[%emt 0:02:17]} 28. c5 {[%emt 0:04:24]} bxc5 {[%emt 0:01:07]} 29. bxc5 {[%emt 0:00:04]} Rab8 {[%emt 0:00:22]} 30. Rd4 {[%emt 0:00:37]} Rb5 {[%emt 0:03:02]} 31. Rc4 {[%emt 0:00:46]} a5 {[%emt 0:02:48]} 32. Kh3 {[%emt 0:02:16]} h6 {[%emt 0:03:46]} 33. g4 {[%emt 0:02:31]} (33. Rc2 $142) 33... Rb3+ {[%emt 0:00:43]} 34. Kh4 $2 {[%emt 0:00:12]} (34. Kg2 $19) 34... fxg4 {[%emt 0:01:35]} (34... Kf6 $142 35. Re3 Rxe3 36. gxf5 Kxf5 37. Rc3 Rxc3 38. c6 g5+ (38... Kxf4 39. a4 Ke5 40. Kg4 R8xc6 41. h4 R6c4#) 39. fxg5 hxg5+ 40. Kh5 Rh8#) 35. Kxg4 {[%emt 0:00:26]} Rxa3 {[%emt 0:00:13]} 36. h4 {[%emt 0:01:58]} (36. Re2 $142) 36... Rb3 {[%emt 0:03:27]} (36... h5+ $142 37. Kg5 Kf7) 37. h5 {[%emt 0:01:26]} Rg8 {[%emt 0:04:08]} 38. hxg6 {[%emt 0:07:04]} (38. Re1 $19) 38... Rxg6+ {[%emt 0:00:24]} 39. Kh5 {[%emt 0:00:28]} Kf6 {[%emt 0:00:43][%cal Rb3h3]} 40. Kh4 {[%emt 0:01:53]} Rb1 {[%emt 0:02:33]} (40... Rgg3 $142 41. Rc3 Rbxc3 (41... Rgxc3 {leads to mate.} 42. Re3 Rxe3 43. Kg4 Rg3+ 44. Kh4 Rh3+ 45. Kg4 h5#) 42. f5 Rh3+ (42... Kxe5 {gets mated.} 43. Kh5 Rg5+ 44. Kxh6 Kxf5 45. Kh7 Rh3#) 43. Kg4 h5+ 44. Kf4 Rh4#) 41. Rc3 {[%emt 0:30:25]} Rb4 {[%emt 0:30:11]} 42. Rf3 {[%emt 0:02:18] [#]} (42. Kh3 $142 Rxf4 43. Rh5) 42... Rxf4+ $3 {[%emt 0:04:34][%mdl 512] Black is clearly winning.} 43. Rxf4+ {[%emt 0:00:07]} Kxe5 {[%emt 0:00:12]} 44. Ra4 {[%emt 0:00:05]} Kd5 {[%emt 0:00:27]} 45. Rxa5 {[%emt 0:00:07]} Kc6 {[%emt 0:31:41] Black took control after the opening.   Weighted Error Value: White=1.05/Black=0.51.  Mistake:       	White=8     	Black=3      Inaccurate:     	White=1     	---        OK:         	White=5     	Black=14     Best:        	White=3     	Black=2      Brilliant:      	---       	Black=1} 0-1